[Event "SWE-ch Blitz 2019"]
[Site "Eskilstuna"]
[Date "2019.07.11"]
[Round "3.17"]
[White "Paltzer, Brandy"]
[Black "Wengholm, Anders"]
[Result "*"]
[ECO "B80"]
[WhiteElo "1715"]
[BlackElo "2219"]
[Annotator "NA"]
[PlyCount "86"]
[EventDate "2019.07.06"]
[EventType "swiss"]
[EventCountry "SWE"]
[SourceTitle "playchess.com"]
[Source "ChessBase"]
[SourceQuality "1"]
[TimeControl "180+2"]

1. e4 {[%emt 0:00:00]} c5 {[%emt 0:00:00]} 2. Nf3 {[%emt 0:00:01]} d6 {[%emt 0:00:00]} 3. d4 {[%emt 0:00:01]} cxd4 {[%emt 0:00:01]} 4. Nxd4 {[%emt 0:00:02]} Nf6 {[%emt 0:00:01]} 5. Nc3 {[%emt 0:00:01]} e6 {[%emt 0:00:01]} 6. Bg5 {[%emt 0:00:01]} Be7 {[%emt 0:00:02]} 7. Bb5+ {[%emt 0:00:03]} Bd7 {[%emt 0:00:07]} 8. Bxd7+ {[%emt 0:00:02]} Nbxd7 {[%emt 0:00:02]} 9. O-O {[%emt 0:00:03]} a6 {[%emt 0:00:01]} 10. Re1 {[%emt 0:00:02]} h6 {[%emt 0:00:08]} 11. Bh4 {[%emt 0:00:01]} O-O {[%emt 0:00:01]} 12. Nf3 {[%emt 0:00:01]} Rc8 {[%emt 0:00:08]} 13. e5 {[%emt 0:00:13]} dxe5 {[%emt 0:00:02]} 14. Nxe5 {[%emt 0:00:03]} Nxe5 {[%emt 0:00:02]} 15. Qxd8 {[%emt 0:00:01]} Rfxd8 {[%emt 0:00:01]} 16. Rxe5 {[%emt 0:00:02]} Rd2 {[%emt 0:00:06]} 17. Rc1 {[%emt 0:00:07]} g5 {[%emt 0:00:15]} 18. Bg3 {[%emt 0:00:02]} Nh5 {[%emt 0:00:01]} 19. Re2 {[%emt 0:00:16]} Rxe2 {[%emt 0:00:08]} 20. Nxe2 {[%emt 0:00:01]} Nxg3 {[%emt 0:00:11]} 21. Nxg3 {[%emt 0:00:02]} Rd8 {[%emt 0:00:02]} 22. Kf1 {[%emt 0:00:10]} f5 {[%emt 0:00:01]} 23. b3 {[%emt 0:00:06]} Kf7 {[%emt 0:00:26]} 24. c4 {[%emt 0:00:12]} Rd2 {[%emt 0:00:07]} 25. a4 {[%emt 0:00:10]} Bc5 {[%emt 0:00:08]} 26. Ne2 {[%emt 0:00:09]} Rb2 {[%emt 0:00:02]} 27. Rc3 {[%emt 0:00:06]} Rb1+ {[%emt 0:00:14]} 28. Rc1 {[%emt 0:00:01]} Rxb3 {[%emt 0:00:01]} 29. g3 {[%emt 0:00:15]} Ra3 {[%emt 0:00:09]} 30. Nc3 {[%emt 0:00:06]} Bd4 {[%emt 0:00:03]} 31. Ne2 {[%emt 0:00:02]} Bc5 {[%emt 0:00:10]} 32. Nc3 {[%emt 0:00:05]} Rb3 {[%emt 0:00:05]} 33. Ne2 {[%emt 0:00:42]} Rb2 {[%emt 0:00:27]} 34. Ke1 {[%emt 0:01:53]} Ra2 {[%emt 0:00:06]} 35. Nc3 {[%emt 0:00:17]} Bb4 {[%emt 0:00:02]} 36. Kf1 {[%emt 0:00:23]} Bxc3 {[%emt 0:00:03]} 37. Rxc3 {[%emt 0:00:01]} Rxa4 {[%emt 0:00:01]} 38. Rb3 {[%emt 0:00:06]} Rxc4 {[%emt 0:00:13]} 39. Rxb7+ {[%emt 0:00:07]} Kf6 {[%emt 0:00:06]} 40. Ra7 {[%emt 0:00:06]} Ra4 {[%emt 0:00:06]} 41. Ke2 {[%emt 0:00:07]} Ra2+ {[%emt 0:00:03]} 42. Ke3 {[%emt 0:00:01]} a5 {[%emt 0:00:20]} 43. Ra6 {[%emt 0:00:01]} a4 {[%emt 0:00:01]} *

[Event "SWE-ch Blitz 2019"]
[Site "Eskilstuna"]
[Date "2019.07.11"]
[Round "3.18"]
[White "Malm Lindberg, Henrik"]
[Black "Rajcevski, Dejan"]
[Result "*"]
[ECO "C42"]
[WhiteElo "2189"]
[BlackElo "1946"]
[Annotator "NA"]
[PlyCount "35"]
[EventDate "2019.07.06"]
[EventType "swiss"]
[EventCountry "SWE"]
[SourceTitle "playchess.com"]
[Source "ChessBase"]
[SourceQuality "1"]
[TimeControl "180+2"]

1. e4 {[%emt 0:00:00]} e5 {[%emt 0:00:00]} 2. Nf3 {[%emt 0:00:01]} Nf6 {[%emt 0:00:00]} 3. Nc3 {[%emt 0:00:01]} Bb4 {[%emt 0:00:01]} 4. Nxe5 {[%emt 0:00:01]} Bxc3 5. dxc3 {[%emt 0:00:02]} d6 {[%emt 0:00:03]} 6. Nd3 {[%emt 0:00:03]} Nxe4 {[%emt 0:00:01]} 7. Be2 {[%emt 0:00:08]} O-O {[%emt 0:00:05]} 8. O-O {[%emt 0:00:03]} Nc6 {[%emt 0:00:04]} 9. Nf4 {[%emt 0:00:17]} Ne5 {[%emt 0:00:17]} 10. c4 {[%emt 0:00:08]} Bf5 {[%emt 0:00:08]} 11. Be3 {[%emt 0:00:14]} Re8 {[%emt 0:00:09]} 12. Nd5 {[%emt 0:00:26]} c6 {[%emt 0:00:23]} 13. Nf4 {[%emt 0:00:03]} Qc7 {[%emt 0:00:03]} 14. f3 {[%emt 0:00:08]} Nf6 {[%emt 0:00:06]} 15. Qd2 {[%emt 0:00:12]} Qe7 {[%emt 0:00:09]} 16. Rfe1 {[%emt 0:00:15]} Rad8 {[%emt 0:00:05]} 17. Bf1 {[%emt 0:00:11]} Qc7 {[%emt 0:00:10]} 18. Rad1 {[%emt 0:00:05]} *

[Event "SWE-ch Blitz 2019"]
[Site "Eskilstuna"]
[Date "2019.07.11"]
[Round "3.19"]
[White "Holving, Rasmus"]
[Black "Andersson, Gorgen"]
[Result "*"]
[ECO "B02"]
[WhiteElo "2158"]
[BlackElo "1869"]
[Annotator "NA"]
[PlyCount "57"]
[EventDate "2019.07.06"]
[EventType "swiss"]
[EventCountry "SWE"]
[SourceTitle "playchess.com"]
[Source "ChessBase"]
[SourceQuality "1"]
[TimeControl "180+2"]

1. Nc3 {[%emt 0:00:00]} Nf6 {[%emt 0:00:00]} 2. e4 {[%emt 0:00:01]} d5 {[%emt 0:00:06]} 3. e5 {[%emt 0:00:12]} Nfd7 {[%emt 0:00:03]} 4. e6 {[%emt 0:00:06]} fxe6 {[%emt 0:00:05]} 5. d4 {[%emt 0:00:00]} g6 {[%emt 0:00:12]} 6. h4 {[%emt 0:00:03]} Bg7 {[%emt 0:00:02]} 7. h5 {[%emt 0:00:03]} Nf6 {[%emt 0:00:08]} 8. hxg6 hxg6 {[%emt 0:00:01]} 9. Rxh8+ {[%emt 0:00:20]} Bxh8 {[%emt 0:00:01]} 10. Bd3 {[%emt 0:00:01]} Kf7 {[%emt 0:00:09]} 11. Nf3 {[%emt 0:00:00]} Nc6 {[%emt 0:00:02]} 12. Bh6 {[%emt 0:00:34]} Bg7 {[%emt 0:00:33]} 13. Bf4 {[%emt 0:00:03]} Qh8 {[%emt 0:00:04]} 14. Nb5 {[%emt 0:00:27]} Qh1+ {[%emt 0:00:04]} 15. Bf1 {[%emt 0:00:01]} Nh5 {[%emt 0:00:12]} 16. Be3 {[%emt 0:00:20]} b6 {[%emt 0:00:04]} 17. Ng5+ {[%emt 0:00:08]} Kg8 {[%emt 0:00:03]} 18. Qd3 {[%emt 0:00:02]} Ba6 {[%emt 0:00:12]} 19. a4 {[%emt 0:00:13]} Qh4 {[%emt 0:01:09]} 20. Qxg6 {[%emt 0:00:24]} Bxb5 {[%emt 0:00:52]} 21. Qh7+ {[%emt 0:01:17]} Kf8 {[%emt 0:00:03]} 22. Nxe6+ {[%emt 0:00:02]} Kf7 {[%emt 0:00:21]} 23. Ng5+ {[%emt 0:00:02]} Kf8 {[%emt 0:00:50]} 24. Bxb5 {[%emt 0:00:24]} Nxd4 {[%emt 0:00:49]} 25. Bxd4 {[%emt 0:00:31]} Qxd4 {[%emt 0:00:01]} 26. Ne6+ {[%emt 0:00:00]} Kf7 {[%emt 0:00:03]} 27. Nxd4 {[%emt 0:00:07]} Nf6 {[%emt 0:00:00]} 28. Qf5 {[%emt 0:00:25]} Rh8 {[%emt 0:00:07]} 29. Ke2 {[%emt 0:00:20]} *

[Event "SWE-ch Blitz 2019"]
[Site "Eskilstuna"]
[Date "2019.07.11"]
[Round "3.20"]
[White "Tadjerbashi, Amir"]
[Black "Alfven, Jorgen"]
[Result "*"]
[ECO "B91"]
[WhiteElo "2199"]
[BlackElo "1876"]
[Annotator "NA"]
[PlyCount "56"]
[EventDate "2019.07.06"]
[EventType "swiss"]
[EventCountry "SWE"]
[SourceTitle "playchess.com"]
[Source "ChessBase"]
[SourceQuality "1"]
[TimeControl "180+2"]

1. e4 {[%emt 0:00:00]} c5 {[%emt 0:00:00]} 2. Nf3 {[%emt 0:00:01]} d6 {[%emt 0:00:01]} 3. d4 {[%emt 0:00:01]} cxd4 4. Nxd4 {[%emt 0:00:02]} Nf6 {[%emt 0:00:02]} 5. Nc3 {[%emt 0:00:01]} a6 {[%emt 0:00:00]} 6. g3 {[%emt 0:00:01]} Nc6 {[%emt 0:00:05]} 7. Nde2 {[%emt 0:00:04]} e5 {[%emt 0:00:07]} 8. Bg2 {[%emt 0:00:02]} Be6 {[%emt 0:00:01]} 9. h3 {[%emt 0:00:01]} Be7 {[%emt 0:00:01]} 10. O-O {[%emt 0:00:02]} O-O {[%emt 0:00:02]} 11. a4 {[%emt 0:00:04]} Rc8 {[%emt 0:00:09]} 12. Be3 {[%emt 0:00:03]} Bc4 {[%emt 0:00:28]} 13. Re1 {[%emt 0:00:03]} b5 14. axb5 {[%emt 0:00:04]} axb5 {[%emt 0:00:11]} 15. b3 {[%emt 0:00:20]} Bxe2 {[%emt 0:00:17]} 16. Rxe2 {[%emt 0:00:21]} b4 {[%emt 0:00:10]} 17. Nd5 {[%emt 0:00:02]} Nxd5 {[%emt 0:00:16]} 18. Qxd5 {[%emt 0:00:02]} Bg5 {[%emt 0:00:08]} 19. f4 {[%emt 0:00:51]} exf4 20. gxf4 {[%emt 0:00:01]} Bf6 {[%emt 0:00:09]} 21. Ra6 {[%emt 0:00:03]} Nd4 22. Bxd4 {[%emt 0:00:12]} Bxd4+ 23. Qxd4 {[%emt 0:00:03]} Qh4 {[%emt 0:00:27]} 24. Qf2 {[%emt 0:01:48]} Qe7 {[%emt 0:00:14]} 25. Rd2 {[%emt 0:00:12]} Rfd8 {[%emt 0:00:01]} 26. Ra5 {[%emt 0:00:27]} Rc3 {[%emt 0:00:07]} 27. Rad5 {[%emt 0:00:28]} h6 {[%emt 0:00:07]} 28. e5 {[%emt 0:00:14]} Rc6 {[%emt 0:02:06]} *

[Event "SWE-ch Blitz 2019"]
[Site "Eskilstuna"]
[Date "2019.07.11"]
[Round "3.21"]
[White "Madebrink, Lars"]
[Black "Attefall, Fredrik"]
[Result "*"]
[ECO "D02"]
[WhiteElo "2147"]
[BlackElo "2077"]
[Annotator "NA"]
[PlyCount "57"]
[EventDate "2019.07.06"]
[EventType "swiss"]
[EventCountry "SWE"]
[SourceTitle "playchess.com"]
[Source "ChessBase"]
[SourceQuality "1"]
[TimeControl "180+2"]

1. d4 {[%emt 0:00:00]} d5 {[%emt 0:00:00]} 2. c4 {[%emt 0:00:00]} c6 {[%emt 0:00:00]} 3. Nf3 {[%emt 0:00:01]} Nf6 4. Nc3 Bf5 {[%emt 0:00:03]} 5. Bf4 {[%emt 0:00:13]} e6 {[%emt 0:00:03]} 6. e3 {[%emt 0:00:01]} Bd6 {[%emt 0:00:16]} 7. Ne5 {[%emt 0:00:02]} O-O {[%emt 0:00:04]} 8. Be2 {[%emt 0:00:02]} dxc4 {[%emt 0:00:08]} 9. Bxc4 {[%emt 0:00:03]} Nbd7 {[%emt 0:00:07]} 10. Nxf7 {[%emt 0:00:02]} Rxf7 {[%emt 0:00:13]} 11. Bxd6 {[%emt 0:00:02]} Nb6 {[%emt 0:00:03]} 12. Bb3 {[%emt 0:00:14]} Qxd6 {[%emt 0:00:02]} 13. f3 {[%emt 0:00:02]} Bg6 {[%emt 0:00:17]} 14. O-O {[%emt 0:00:03]} Nfd5 {[%emt 0:00:08]} 15. e4 {[%emt 0:00:06]} Nxc3 {[%emt 0:00:18]} 16. bxc3 {[%emt 0:00:02]} Kh8 {[%emt 0:00:06]} 17. e5 {[%emt 0:00:06]} Qd7 {[%emt 0:00:04]} 18. f4 {[%emt 0:00:01]} Nd5 {[%emt 0:00:07]} 19. Qg4 {[%emt 0:00:14]} Raf8 {[%emt 0:00:14]} 20. g3 {[%emt 0:00:06]} Bf5 {[%emt 0:00:04]} 21. Qf3 {[%emt 0:00:06]} Bg6 {[%emt 0:00:31]} 22. Rad1 {[%emt 0:00:08]} Qe7 {[%emt 0:00:13]} 23. Rd2 {[%emt 0:00:11]} Bf5 {[%emt 0:00:46]} 24. Rfd1 {[%emt 0:00:06]} g5 {[%emt 0:00:36]} 25. c4 {[%emt 0:03:05]} Nb6 {[%emt 0:00:05]} 26. g4 {[%emt 0:00:12]} Bg6 {[%emt 0:01:06]} 27. f5 {[%emt 0:00:45]} exf5 {[%emt 0:00:01]} 28. Qe3 {[%emt 0:00:27]} fxg4 {[%emt 0:00:29]} 29. d5 {[%emt 0:00:21]} *

[Event "SWE-ch Blitz 2019"]
[Site "Eskilstuna"]
[Date "2019.07.11"]
[Round "3.22"]
[White "Adler, Bo"]
[Black "Nordstrom, Per-Olov"]
[Result "*"]
[ECO "B23"]
[WhiteElo "2181"]
[BlackElo "1870"]
[Annotator "NA"]
[PlyCount "54"]
[EventDate "2019.07.06"]
[EventType "swiss"]
[EventCountry "SWE"]
[SourceTitle "playchess.com"]
[Source "ChessBase"]
[SourceQuality "1"]
[TimeControl "180+2"]

1. e4 {[%emt 0:00:00]} c5 {[%emt 0:00:00]} 2. Nc3 {[%emt 0:00:02]} Nc6 {[%emt 0:00:02]} 3. f4 {[%emt 0:00:02]} g6 {[%emt 0:00:02]} 4. Nf3 {[%emt 0:00:02]} Bg7 {[%emt 0:00:02]} 5. Bb5 {[%emt 0:00:02]} Nd4 {[%emt 0:00:02]} 6. Be2 {[%emt 0:00:06]} d6 {[%emt 0:00:18]} 7. O-O {[%emt 0:00:02]} e6 {[%emt 0:00:05]} 8. d3 {[%emt 0:00:05]} Ne7 {[%emt 0:00:04]} 9. Kh1 {[%emt 0:00:14]} O-O {[%emt 0:00:04]} 10. Be3 {[%emt 0:00:02]} Rb8 {[%emt 0:00:11]} 11. Qd2 {[%emt 0:00:03]} f5 {[%emt 0:00:10]} 12. Bg1 {[%emt 0:00:18]} b5 {[%emt 0:00:05]} 13. Nxd4 {[%emt 0:00:02]} cxd4 {[%emt 0:00:05]} 14. Nd1 {[%emt 0:00:05]} Nc6 {[%emt 0:00:06]} 15. Bf3 {[%emt 0:00:11]} Bb7 {[%emt 0:00:10]} 16. Nf2 {[%emt 0:00:03]} Qe7 {[%emt 0:00:12]} 17. Rae1 {[%emt 0:00:01]} a6 {[%emt 0:00:07]} 18. g4 {[%emt 0:00:21]} e5 {[%emt 0:00:20]} 19. exf5 gxf5 {[%emt 0:00:05]} 20. Bd5+ {[%emt 0:00:30]} Kh8 {[%emt 0:00:03]} 21. gxf5 {[%emt 0:00:04]} Rxf5 {[%emt 0:00:08]} 22. Ne4 {[%emt 0:00:16]} Bh6 {[%emt 0:00:09]} 23. Qg2 {[%emt 0:00:39]} Bxf4 {[%emt 0:01:07]} 24. Ng3 {[%emt 0:00:27]} Rf6 {[%emt 0:00:42]} 25. Nh5 {[%emt 0:00:55]} Rg6 {[%emt 0:00:47]} 26. Qe4 {[%emt 0:01:25]} Qh4 {[%emt 0:00:27]} 27. Nxf4 {[%emt 0:00:19]} exf4 {[%emt 0:00:44]} *